[Event "Early-Titled-Tuesday-Blitz-May-14-2024"]
[Site "Chess.com"]
[Date "2024.05.14"]
[Round "5"]
[White "MikeWizard"]
[Black "chesslh93"]
[Result "0-1"]
[WhiteElo "2014"]
[BlackElo "2340"]
[TimeControl "180+1"]
[EndTime "9:00:04 PDT"]
[Termination "chesslh93 won by resignation"]

1. d4 {[%clk 0:03:00.9]} 1... d5 {[%clk 0:02:47.2]} 2. c4 {[%clk 0:02:59.9]}
2... e6 {[%clk 0:02:47.3]} 3. Nc3 {[%clk 0:02:58.5]} 3... Nf6 {[%clk 0:02:47.8]}
4. cxd5 {[%clk 0:02:58.2]} 4... exd5 {[%clk 0:02:48.7]} 5. Bg5 {[%clk
0:02:57.5]} 5... c6 {[%clk 0:02:49.1]} 6. Qc2 {[%clk 0:02:57.2]} 6... Be7 {[%clk
0:02:48.6]} 7. e3 {[%clk 0:02:57.3]} 7... Nbd7 {[%clk 0:02:48.7]} 8. Bd3 {[%clk
0:02:57.3]} 8... O-O {[%clk 0:02:49.4]} 9. h3 {[%clk 0:02:57.1]} 9... Re8 {[%clk
0:02:49.8]} 10. Nf3 {[%clk 0:02:56.4]} 10... Nf8 {[%clk 0:02:49.6]} 11. Ne5
{[%clk 0:02:51.5]} 11... Ng6 {[%clk 0:02:38.8]} 12. Nxg6 {[%clk 0:02:46]} 12...
hxg6 {[%clk 0:02:38.8]} 13. O-O {[%clk 0:02:37.7]} 13... Be6 {[%clk 0:02:35.7]}
14. a3 {[%clk 0:02:34.8]} 14... a5 {[%clk 0:02:34.7]} 15. Na4 {[%clk 0:02:32.4]}
15... Nd7 {[%clk 0:02:01.7]} 16. Bxe7 {[%clk 0:02:23.2]} 16... Qxe7 {[%clk
0:02:02.6]} 17. Nc5 {[%clk 0:02:23.1]} 17... Nxc5 {[%clk 0:02:01.8]} 18. dxc5
{[%clk 0:02:22.4]} 18... Qg5 {[%clk 0:01:55.2]} 19. Kh2 {[%clk 0:02:16.3]} 19...
Bf5 {[%clk 0:01:54.3]} 20. Bxf5 {[%clk 0:02:13.6]} 20... Qxf5 {[%clk 0:01:54.5]}
21. Qxf5 {[%clk 0:02:13.3]} 21... gxf5 {[%clk 0:01:55.4]} 22. Rfd1 {[%clk
0:02:08.3]} 22... Re4 {[%clk 0:01:53.8]} 23. Rd4 {[%clk 0:02:07.7]} 23... Rxd4
{[%clk 0:01:50.2]} 24. exd4 {[%clk 0:02:07.6]} 24... Re8 {[%clk 0:01:51.1]} 25.
b4 {[%clk 0:01:55.6]} 25... a4 {[%clk 0:01:51]} 26. Rb1 {[%clk 0:01:50.4]} 26...
Re4 {[%clk 0:01:44.6]} 27. b5 {[%clk 0:01:50.1]} 27... Rxd4 {[%clk 0:01:41]} 28.
bxc6 {[%clk 0:01:49.8]} 28... bxc6 {[%clk 0:01:41.9]} 29. Rb6 {[%clk 0:01:49.4]}
29... Rd3 {[%clk 0:01:41.4]} 30. Rxc6 {[%clk 0:01:47.8]} 30... Rxa3 {[%clk
0:01:41.8]} 31. Rd6 {[%clk 0:01:46.4]} 31... Rd3 {[%clk 0:01:40.4]} 32. c6
{[%clk 0:01:44.7]} 32... Rc3 {[%clk 0:01:40.3]} 33. Rxd5 {[%clk 0:01:44.4]}
33... Rxc6 {[%clk 0:01:40.5]} 34. Ra5 {[%clk 0:01:42.2]} 34... Rc4 {[%clk
0:01:34.9]} 35. Rxf5 {[%clk 0:01:41.3]} 35... a3 {[%clk 0:01:30.7]} 36. Ra5
{[%clk 0:01:40.6]} 36... Rc3 {[%clk 0:01:31.2]} 37. Ra7 {[%clk 0:01:38.1]} 37...
g6 {[%clk 0:01:31.3]} 38. g3 {[%clk 0:01:37.6]} 38... Kg7 {[%clk 0:01:31.1]} 39.
h4 {[%clk 0:01:36.8]} 39... Kf6 {[%clk 0:01:30.1]} 40. Ra5 {[%clk 0:01:35.2]}
40... Ke6 {[%clk 0:01:29.7]} 41. Kg2 {[%clk 0:01:33]} 41... Kd6 {[%clk
0:01:28.8]} 42. Ra7 {[%clk 0:01:30.9]} 42... Ke6 {[%clk 0:01:21.9]} 43. Ra6+
{[%clk 0:01:30]} 43... Ke7 {[%clk 0:01:14.8]} 44. g4 {[%clk 0:01:27.1]} 44...
Kf8 {[%clk 0:01:13.4]} 45. f3 {[%clk 0:01:26.6]} 45... Rc2+ {[%clk 0:01:13.6]}
46. Kg3 {[%clk 0:01:26.8]} 46... a2 {[%clk 0:01:14.1]} 47. Kf4 {[%clk
0:01:22.8]} 47... Kg7 {[%clk 0:01:11.5]} 48. Ra7 {[%clk 0:01:22.2]} 48... Rb2
{[%clk 0:01:10.5]} 49. Ra6 {[%clk 0:01:21.5]} 49... f6 {[%clk 0:01:02.1]} 50.
Kg3 {[%clk 0:01:17.5]} 50... Kf7 {[%clk 0:01:01.1]} 51. h5 {[%clk 0:01:16.1]}
51... gxh5 {[%clk 0:00:57.5]} 52. gxh5 {[%clk 0:01:16]} 52... Kg7 {[%clk
0:00:57.9]} 53. Kf4 {[%clk 0:01:16]} 53... Rc2 {[%clk 0:00:51.9]} 54. Kf5 {[%clk
0:01:14.1]} 54... Rc5+ {[%clk 0:00:51.4]} 55. Kg4 {[%clk 0:01:13.5]} 55... Rc2
{[%clk 0:00:33.2]} 56. Kf5 {[%clk 0:01:12.8]} 56... Rf2 {[%clk 0:00:23.7]} 57.
f4 {[%clk 0:01:04.1]} 57... Kh7 {[%clk 0:00:17.2]} 58. Kg4 {[%clk 0:00:57.8]}
58... Kg8 {[%clk 0:00:13]} 59. Ra7 {[%clk 0:00:55.5]} 59... Rh2 {[%clk
0:00:10.6]} 60. Kg3 {[%clk 0:00:51.9]} 60... Rb2 {[%clk 0:00:08.9]} 61. Kg4
{[%clk 0:00:51.2]} 61... Kh8 {[%clk 0:00:06.6]} 62. Kf5 {[%clk 0:00:50.8]} 62...
Kg8 {[%clk 0:00:04.6]} 63. Kg6 {[%clk 0:00:49.7]} 63... Rg2+ {[%clk 0:00:04.5]}
64. Kxf6 {[%clk 0:00:49.6]} 64... Rh2 {[%clk 0:00:04.4]} 65. Kg5 {[%clk
0:00:47.3]} 65... Rg2+ {[%clk 0:00:04.6]} 66. Kf5 {[%clk 0:00:47.4]} 66... Rh2
{[%clk 0:00:04.4]} 67. Kg4 {[%clk 0:00:46.9]} 67... Rg2+ {[%clk 0:00:04.6]} 68.
Kf5 {[%clk 0:00:47.1]} 68... Rh2 {[%clk 0:00:04.9]} 69. Kg6 {[%clk 0:00:47.1]}
69... Rg2+ {[%clk 0:00:05.2]} 70. Kf6 {[%clk 0:00:47.2]} 70... Rb2 {[%clk
0:00:02.7]} 71. h6 {[%clk 0:00:46.1]} 71... Rb6+ {[%clk 0:00:02.4]} 72. Kg5
{[%clk 0:00:45.9]} 72... Rb5+ {[%clk 0:00:01.7]} 73. f5 {[%clk 0:00:45.9]} 73...
Rb2 {[%clk 0:00:01.3]} 74. f6 {[%clk 0:00:43.7]} 74... Rg2+ {[%clk 0:00:01.2]}
75. Kf5 {[%clk 0:00:43]} 75... Rf2+ {[%clk 0:00:01.7]} 76. Ke5 {[%clk
0:00:42.8]} 76... Re2+ {[%clk 0:00:02]} 77. Kf5 {[%clk 0:00:42.9]} 77... Rf2+
{[%clk 0:00:02.5]} 78. Ke6 {[%clk 0:00:43.2]} 78... Re2+ {[%clk 0:00:03]} 79.
Kd5 {[%clk 0:00:43.3]} 79... Rd2+ {[%clk 0:00:03.3]} 80. Ke4 {[%clk 0:00:43.1]}
80... Re2+ {[%clk 0:00:03.3]} 81. Kf3 {[%clk 0:00:42.8]} 81... Rb2 {[%clk
0:00:03]} 82. f7+ {[%clk 0:00:42.1]} 82... Kf8 {[%clk 0:00:03.3]} 83. Kg4 {[%clk
0:00:41.8]} 83... Rh2 {[%clk 0:00:02.8]} 84. Kg5 {[%clk 0:00:41.2]} 84... Rg2+
{[%clk 0:00:02.8]} 85. Kf6 {[%clk 0:00:40.6]} 85... Rf2+ {[%clk 0:00:03.2]} 86.
Kg6 {[%clk 0:00:40.5]} 86... Rg2+ {[%clk 0:00:03.6]} 87. Kh7 {[%clk 0:00:40.3]}
87... Rg1 {[%clk 0:00:01.9]} 88. Ra6 {[%clk 0:00:38.6]} 88... a1=Q {[%clk
0:00:01.5]} 89. Rxa1 {[%clk 0:00:38.5]} 89... Rxa1 {[%clk 0:00:02.4]} 90. Kg6
{[%clk 0:00:37.7]} 90... Rg1+ {[%clk 0:00:02.6]} 91. Kf6 {[%clk 0:00:37.9]}
91... Rf1+ {[%clk 0:00:03]} 92. Kg6 {[%clk 0:00:38]} 92... Rg1+ {[%clk
0:00:03.2]} 93. Kf6 {[%clk 0:00:38]} 93... Rf1+ {[%clk 0:00:03.7]} 94. Kg6
{[%clk 0:00:38.2]} 94... Rh1 {[%clk 0:00:03.1]} 95. h7 {[%clk 0:00:36.8]} 95...
Rh2 {[%clk 0:00:03.4]} 96. Kf6 {[%clk 0:00:35.5]} 96... Rxh7 {[%clk 0:00:03.3]}
97. Kg6 {[%clk 0:00:35.9]} 97... Rxf7 {[%clk 0:00:04.2]} 98. Kg5 {[%clk
0:00:36.2]} 98... Ke7 {[%clk 0:00:04.6]} 99. Kg6 {[%clk 0:00:36.5]} 99... Rf1
{[%clk 0:00:04.9]} 100. Kg5 {[%clk 0:00:36.7]} 100... Ke6 {[%clk 0:00:05.5]}
101. Kg4 {[%clk 0:00:37]} 101... Ke5 {[%clk 0:00:06.1]} 102. Kg3 {[%clk
0:00:37.3]} 102... Ke4 {[%clk 0:00:06.6]} 103. Kg2 {[%clk 0:00:37.7]} 103... Rf8
{[%clk 0:00:07.5]} 104. Kg3 {[%clk 0:00:38]} 104... Rf7 {[%clk 0:00:08.1]} 105.
Kg4 {[%clk 0:00:38.3]} 105... Rg7+ {[%clk 0:00:08.6]} 106. Kh5 {[%clk
0:00:38.5]} 106... Kf4 {[%clk 0:00:09.1]} 0-1

[Event "Early-Titled-Tuesday-Blitz-May-14-2024"]
[Site "Chess.com"]
[Date "2024.05.14"]
[Round "5"]
[White "Jesseinkman"]
[Black "GeorgiosSouleidis"]
[Result "0-1"]
[WhiteElo "2518"]
[BlackElo "2679"]
[TimeControl "180+1"]
[EndTime "9:00:14 PDT"]
[Termination "GeorgiosSouleidis won by resignation"]

1. e4 {[%clk 0:03:00.9]} 1... c5 {[%clk 0:02:59.5]} 2. Nf3 {[%clk 0:03:00]} 2...
e6 {[%clk 0:02:59.7]} 3. d4 {[%clk 0:03:00.5]} 3... cxd4 {[%clk 0:03:00.6]} 4.
Nxd4 {[%clk 0:03:01.4]} 4... Nf6 {[%clk 0:03:00.7]} 5. Nc3 {[%clk 0:03:01.9]}
5... Nc6 {[%clk 0:03:01]} 6. Ndb5 {[%clk 0:03:00.5]} 6... Bc5 {[%clk 0:03:00]}
7. Bf4 {[%clk 0:02:45.5]} 7... O-O {[%clk 0:02:58.8]} 8. Bd6 {[%clk 0:02:40.4]}
8... Qb6 {[%clk 0:02:55.7]} 9. Bxc5 {[%clk 0:02:33.9]} 9... Qxc5 {[%clk
0:02:56.6]} 10. Qd6 {[%clk 0:02:28.9]} 10... Qb6 {[%clk 0:02:56.6]} 11. O-O-O
{[%clk 0:02:13.3]} 11... Qxf2 {[%clk 0:02:27.2]} 12. Bd3 {[%clk 0:01:58.3]}
12... Ne8 {[%clk 0:02:00.5]} 13. Qa3 {[%clk 0:01:29.1]} 13... a6 {[%clk
0:01:59.9]} 14. Kb1 {[%clk 0:01:14.5]} 14... Rb8 {[%clk 0:01:32.5]} 15. Nd6
{[%clk 0:01:12.1]} 15... Nxd6 {[%clk 0:01:27.8]} 16. Qxd6 {[%clk 0:01:13]} 16...
Qd4 {[%clk 0:01:23.6]} 17. Qg3 {[%clk 0:01:00.2]} 17... Qe5 {[%clk 0:01:23.6]}
18. Qf2 {[%clk 0:00:59.8]} 18... b5 {[%clk 0:01:21.3]} 19. h4 {[%clk 0:00:54.4]}
19... Bb7 {[%clk 0:01:17.3]} 20. h5 {[%clk 0:00:54.7]} 20... h6 {[%clk
0:01:14.4]} 21. g4 {[%clk 0:00:54.7]} 21... f6 {[%clk 0:01:13.2]} 22. Ne2 {[%clk
0:00:54.4]} 22... Nb4 {[%clk 0:01:04.4]} 23. Nf4 {[%clk 0:00:52.1]} 23... Nxd3
{[%clk 0:00:44.1]} 24. cxd3 {[%clk 0:00:52.1]} 24... Rfc8 {[%clk 0:00:29.7]} 25.
Rc1 {[%clk 0:00:47.5]} 25... Qd6 {[%clk 0:00:23.5]} 26. Qe3 {[%clk 0:00:45.4]}
26... a5 {[%clk 0:00:20.4]} 27. Ng6 {[%clk 0:00:45.1]} 27... a4 {[%clk
0:00:17.8]} 28. Rhf1 {[%clk 0:00:41.8]} 28... a3 {[%clk 0:00:15]} 29. e5 {[%clk
0:00:37.9]} 29... Rxc1+ {[%clk 0:00:13.4]} 30. Rxc1 {[%clk 0:00:35.6]} 30...
fxe5 {[%clk 0:00:13.9]} 31. Qxe5 {[%clk 0:00:28.1]} 31... Qxe5 {[%clk 0:00:14]}
32. Nxe5 {[%clk 0:00:28.1]} 32... axb2 {[%clk 0:00:14]} 33. Kxb2 {[%clk
0:00:29]} 33... d6 {[%clk 0:00:13.5]} 34. Ng6 {[%clk 0:00:27.8]} 34... Bd5
{[%clk 0:00:12.4]} 35. Rc7 {[%clk 0:00:22.7]} 35... Ra8 {[%clk 0:00:11.6]} 36.
a3 {[%clk 0:00:23.1]} 36... Rb8 {[%clk 0:00:10.7]} 37. Ne7+ {[%clk 0:00:22.9]}
37... Kh7 {[%clk 0:00:09.4]} 38. Nxd5 {[%clk 0:00:21]} 38... exd5 {[%clk
0:00:10.3]} 39. Rd7 {[%clk 0:00:20.7]} 39... Rf8 {[%clk 0:00:06.7]} 40. Rxd6
{[%clk 0:00:20]} 40... Rf4 {[%clk 0:00:07]} 41. Rg6 {[%clk 0:00:20.2]} 41... d4
{[%clk 0:00:04.9]} 42. Kb3 {[%clk 0:00:19.3]} 42... Rf3 {[%clk 0:00:05.2]} 43.
Kb4 {[%clk 0:00:16.9]} 43... Rxd3 {[%clk 0:00:05.3]} 44. Kxb5 {[%clk 0:00:17.4]}
44... Rxa3 {[%clk 0:00:05.5]} 45. Kc4 {[%clk 0:00:17.6]} 45... d3 {[%clk
0:00:03.4]} 46. Kb4 {[%clk 0:00:15.4]} 46... d2 {[%clk 0:00:02.9]} 47. Rd6
{[%clk 0:00:15.7]} 47... Rg3 {[%clk 0:00:03.2]} 48. Rxd2 {[%clk 0:00:14.6]}
48... Rxg4+ {[%clk 0:00:03.8]} 49. Kc3 {[%clk 0:00:14]} 49... Rg5 {[%clk
0:00:03.9]} 50. Rh2 {[%clk 0:00:14.3]} 50... Kg8 {[%clk 0:00:04.5]} 51. Kd4
{[%clk 0:00:14.8]} 51... Kf7 {[%clk 0:00:05.4]} 52. Ke4 {[%clk 0:00:15.3]} 52...
Kf6 {[%clk 0:00:06.3]} 53. Kf4 {[%clk 0:00:15.8]} 53... Ke6 {[%clk 0:00:06.7]}
54. Re2+ {[%clk 0:00:15.6]} 54... Kf7 {[%clk 0:00:06.5]} 55. Rh2 {[%clk
0:00:16]} 55... Kf6 {[%clk 0:00:07.1]} 56. Rh1 {[%clk 0:00:14.3]} 56... Ra5
{[%clk 0:00:06.5]} 57. Kg4 {[%clk 0:00:13.1]} 57... Ra4+ {[%clk 0:00:06.7]} 58.
Kf3 {[%clk 0:00:10.7]} 58... Kf5 {[%clk 0:00:05.5]} 59. Rg1 {[%clk 0:00:09.5]}
59... Rf4+ {[%clk 0:00:04.6]} 60. Ke3 {[%clk 0:00:09.7]} 60... Rg4 {[%clk
0:00:04.6]} 61. Rh1 {[%clk 0:00:09]} 61... Kg5 {[%clk 0:00:04.5]} 62. Kf3 {[%clk
0:00:09.6]} 62... Rf4+ {[%clk 0:00:03.9]} 63. Ke3 {[%clk 0:00:10.1]} 63... Rg4
{[%clk 0:00:03.7]} 64. Kf3 {[%clk 0:00:10.5]} 64... Rf4+ {[%clk 0:00:03.3]} 65.
Ke3 {[%clk 0:00:10.8]} 65... Rf7 {[%clk 0:00:03.8]} 66. Rh2 {[%clk 0:00:10.3]}
66... Kg4 {[%clk 0:00:04.2]} 67. Rh1 {[%clk 0:00:10]} 67... Kg3 {[%clk
0:00:04.3]} 68. Ke4 {[%clk 0:00:10.6]} 68... Kg4 {[%clk 0:00:04]} 69. Rh2 {[%clk
0:00:07.2]} 69... Ra7 {[%clk 0:00:04.1]} 70. Ke5 {[%clk 0:00:05.4]} 70... Re7+
{[%clk 0:00:03.4]} 71. Kd4 {[%clk 0:00:05.3]} 71... Kf5 {[%clk 0:00:03]} 72. Rg2
{[%clk 0:00:04.9]} 72... Kf4 {[%clk 0:00:02.4]} 73. Rg6 {[%clk 0:00:04]} 73...
Rd7+ {[%clk 0:00:02.4]} 74. Kc5 {[%clk 0:00:04.5]} 74... Kf5 {[%clk 0:00:02.2]}
75. Kc4 {[%clk 0:00:04.3]} 75... Rd1 {[%clk 0:00:00.7]} 76. Kc3 {[%clk
0:00:04.5]} 76... Rh1 {[%clk 0:00:01.4]} 77. Rxg7 {[%clk 0:00:04.6]} 77... Rxh5
{[%clk 0:00:02.3]} 78. Kd3 {[%clk 0:00:05.4]} 78... Kf6 {[%clk 0:00:02.5]} 79.
Rg8 {[%clk 0:00:05.3]} 79... Re5 {[%clk 0:00:02.8]} 80. Kd4 {[%clk 0:00:04.8]}
80... Re7 {[%clk 0:00:03.2]} 81. Kd3 {[%clk 0:00:02.8]} 81... Kf5 {[%clk
0:00:02.8]} 82. Kd2 {[%clk 0:00:02.5]} 82... h5 {[%clk 0:00:03.1]} 83. Kd3
{[%clk 0:00:02.8]} 83... Kf4 {[%clk 0:00:03.6]} 84. Kd4 {[%clk 0:00:02.4]} 84...
h4 {[%clk 0:00:04]} 85. Rh8 {[%clk 0:00:01.8]} 85... Rd7+ {[%clk 0:00:03.8]} 86.
Kc3 {[%clk 0:00:02]} 86... Kg3 {[%clk 0:00:04.7]} 87. Rg8+ {[%clk 0:00:02.4]}
87... Kh2 {[%clk 0:00:05]} 88. Kc4 {[%clk 0:00:03]} 88... h3 {[%clk 0:00:05.5]}
89. Rg5 {[%clk 0:00:03.2]} 89... Kh1 {[%clk 0:00:05.6]} 90. Kc5 {[%clk
0:00:03.3]} 90... h2 {[%clk 0:00:06]} 91. Kc6 {[%clk 0:00:03.9]} 91... Rd2
{[%clk 0:00:06.2]} 92. Rg8 {[%clk 0:00:03.9]} 92... Rg2 {[%clk 0:00:06.5]} 93.
Ra8 {[%clk 0:00:03.6]} 93... Kg1 {[%clk 0:00:06.8]} 94. Ra1+ {[%clk 0:00:03.8]}
94... Kf2 {[%clk 0:00:07.2]} 95. Ra2+ {[%clk 0:00:01.7]} 95... Kg3 {[%clk
0:00:07.4]} 96. Ra3+ {[%clk 0:00:02.2]} 96... Kg4 {[%clk 0:00:07.7]} 97. Ra4+
{[%clk 0:00:02.6]} 97... Kg5 {[%clk 0:00:08]} 98. Ra5+ {[%clk 0:00:03]} 98...
Kg6 {[%clk 0:00:08.1]} 99. Ra1 {[%clk 0:00:02.3]} 99... Rg1 {[%clk 0:00:08.3]}
0-1

[Event "Early-Titled-Tuesday-Blitz-May-14-2024"]
[Site "Chess.com"]
[Date "2024.05.14"]
[Round "5"]
[White "Yan_Dyomin2010"]
[Black "praveenb2002"]
[Result "1/2-1/2"]
[WhiteElo "2683"]
[BlackElo "2861"]
[TimeControl "180+1"]
[EndTime "9:00:26 PDT"]
[Termination "Game drawn by stalemate"]

1. e4 {[%clk 0:03:00.9]} 1... c6 {[%clk 0:02:58.1]} 2. d4 {[%clk 0:03:01.2]}
2... d5 {[%clk 0:02:59]} 3. e5 {[%clk 0:03:01.5]} 3... Bf5 {[%clk 0:02:55.7]} 4.
h4 {[%clk 0:03:01.9]} 4... h5 {[%clk 0:02:53.1]} 5. Bd3 {[%clk 0:03:02.4]} 5...
Bxd3 {[%clk 0:02:48.9]} 6. Qxd3 {[%clk 0:03:03.3]} 6... e6 {[%clk 0:02:48.6]} 7.
Nd2 {[%clk 0:03:03.6]} 7... c5 {[%clk 0:02:45.5]} 8. Ngf3 {[%clk 0:02:54.9]}
8... Nc6 {[%clk 0:02:40.9]} 9. dxc5 {[%clk 0:02:54.8]} 9... Bxc5 {[%clk
0:02:38.6]} 10. Nb3 {[%clk 0:02:50.5]} 10... Bb6 {[%clk 0:02:38.3]} 11. O-O
{[%clk 0:02:49.5]} 11... Nge7 {[%clk 0:02:38.3]} 12. Bg5 {[%clk 0:02:48.1]}
12... Qc7 {[%clk 0:02:31.5]} 13. Bxe7 {[%clk 0:02:37.3]} 13... Nxe7 {[%clk
0:02:27.3]} 14. Rfe1 {[%clk 0:02:31.4]} 14... O-O {[%clk 0:02:22.2]} 15. Nbd4
{[%clk 0:02:21.7]} 15... Rfc8 {[%clk 0:02:13.4]} 16. c3 {[%clk 0:02:21.3]} 16...
Qc4 {[%clk 0:02:13.1]} 17. Qd2 {[%clk 0:02:21.2]} 17... Nc6 {[%clk 0:02:10.1]}
18. b3 {[%clk 0:02:20.5]} 18... Qc5 {[%clk 0:02:04.4]} 19. Qg5 {[%clk
0:02:06.8]} 19... Qxc3 {[%clk 0:01:48.2]} 20. Nb5 {[%clk 0:01:50.4]} 20... Qc2
{[%clk 0:01:38.6]} 21. Rf1 {[%clk 0:01:44.4]} 21... Qg6 {[%clk 0:01:29.9]} 22.
Qxg6 {[%clk 0:01:40.7]} 22... fxg6 {[%clk 0:01:30.8]} 23. Nd6 {[%clk 0:01:39.6]}
23... Rc7 {[%clk 0:01:28.9]} 24. Rfe1 {[%clk 0:01:28.2]} 24... Bc5 {[%clk
0:01:03]} 25. Rac1 {[%clk 0:01:25.8]} 25... b6 {[%clk 0:00:19.8]} 26. Ng5 {[%clk
0:01:18.2]} 26... Nd4 {[%clk 0:00:17.9]} 27. Rcd1 {[%clk 0:01:03.5]} 27... Rd7
{[%clk 0:00:15.9]} 28. b4 {[%clk 0:00:56.4]} 28... Bxb4 {[%clk 0:00:14.1]} 29.
Rxd4 {[%clk 0:00:53.1]} 29... Bxe1 {[%clk 0:00:13.8]} 30. Nxe6 {[%clk 0:00:54]}
30... Bc3 {[%clk 0:00:11.7]} 31. Rxd5 {[%clk 0:00:47]} 31... Bxe5 {[%clk
0:00:11.8]} 32. Rxe5 {[%clk 0:00:47.6]} 32... Rxd6 {[%clk 0:00:12.2]} 33. Nf4
{[%clk 0:00:46.6]} 33... Rf8 {[%clk 0:00:11.2]} 34. Nh3 {[%clk 0:00:46.5]} 34...
Rf5 {[%clk 0:00:09.8]} 35. Re8+ {[%clk 0:00:45.9]} 35... Rf8 {[%clk 0:00:10]}
36. Re7 {[%clk 0:00:46.3]} 36... a5 {[%clk 0:00:10.1]} 37. Rb7 {[%clk
0:00:42.9]} 37... Rfd8 {[%clk 0:00:07.1]} 38. g3 {[%clk 0:00:41.9]} 38... R8d7
{[%clk 0:00:06]} 39. Rb8+ {[%clk 0:00:42.2]} 39... Kf7 {[%clk 0:00:06.5]} 40.
Ng5+ {[%clk 0:00:42.2]} 40... Ke7 {[%clk 0:00:06.9]} 41. Kg2 {[%clk 0:00:38.2]}
41... Rd2 {[%clk 0:00:05.5]} 42. Rxb6 {[%clk 0:00:38.2]} 42... Rxa2 {[%clk
0:00:05.6]} 43. Rxg6 {[%clk 0:00:38.2]} 43... Kf8 {[%clk 0:00:05.4]} 44. Ra6
{[%clk 0:00:36.6]} 44... a4 {[%clk 0:00:05.6]} 45. Ne6+ {[%clk 0:00:36.9]} 45...
Ke7 {[%clk 0:00:05.6]} 46. Ng5 {[%clk 0:00:34.3]} 46... Rdd2 {[%clk 0:00:05.3]}
47. Ne4 {[%clk 0:00:34.9]} 47... Re2 {[%clk 0:00:04.4]} 48. Kf3 {[%clk
0:00:35.3]} 48... a3 {[%clk 0:00:03.8]} 49. Nc3 {[%clk 0:00:35.8]} 49... Rxf2+
{[%clk 0:00:03.7]} 50. Ke3 {[%clk 0:00:35.9]} 50... Rac2 {[%clk 0:00:03.4]} 51.
Rxa3 {[%clk 0:00:35]} 51... Rg2 {[%clk 0:00:04.1]} 52. Ne4 {[%clk 0:00:34.3]}
52... Rce2+ {[%clk 0:00:04.3]} 53. Kf3 {[%clk 0:00:34.3]} 53... Ra2 {[%clk
0:00:04.8]} 54. Rc3 {[%clk 0:00:31.7]} 54... Rgc2 {[%clk 0:00:05.2]} 55. Rb3
{[%clk 0:00:31.1]} 55... Kf7 {[%clk 0:00:05.1]} 56. Rb7+ {[%clk 0:00:30.4]}
56... Kg6 {[%clk 0:00:05.5]} 57. Rb6+ {[%clk 0:00:30.1]} 57... Kf5 {[%clk
0:00:05.6]} 58. Rb5+ {[%clk 0:00:29.9]} 58... Ke6 {[%clk 0:00:05.3]} 59. Rxh5
{[%clk 0:00:28.5]} 59... Ra3+ {[%clk 0:00:05.8]} 60. Kf4 {[%clk 0:00:27.6]}
60... Rc4 {[%clk 0:00:06.5]} 61. Re5+ {[%clk 0:00:27.4]} 61... Kf7 {[%clk
0:00:06.7]} 62. Kf5 {[%clk 0:00:27.5]} 62... Rf3+ {[%clk 0:00:06.7]} 63. Kg4
{[%clk 0:00:26.1]} 63... Re3 {[%clk 0:00:07.2]} 64. Kf4 {[%clk 0:00:25.9]} 64...
Re1 {[%clk 0:00:05.7]} 65. Kf3 {[%clk 0:00:26.3]} 65... Rf1+ {[%clk 0:00:05.3]}
66. Kg2 {[%clk 0:00:25.9]} 66... Rcc1 {[%clk 0:00:05.2]} 67. Ng5+ {[%clk
0:00:24.7]} 67... Kf6 {[%clk 0:00:05.2]} 68. Re2 {[%clk 0:00:24.6]} 68... Rfd1
{[%clk 0:00:05.2]} 69. Rf2+ {[%clk 0:00:24.2]} 69... Ke7 {[%clk 0:00:04.8]} 70.
Kh3 {[%clk 0:00:24.5]} 70... g6 {[%clk 0:00:04.7]} 71. Rf7+ {[%clk 0:00:24.5]}
71... Ke8 {[%clk 0:00:05.1]} 72. Rf6 {[%clk 0:00:24.7]} 72... Rh1+ {[%clk
0:00:04.3]} 73. Kg4 {[%clk 0:00:25.2]} 73... Rc4+ {[%clk 0:00:04.9]} 74. Rf4
{[%clk 0:00:21.7]} 74... Rxf4+ {[%clk 0:00:05.2]} 75. Kxf4 {[%clk 0:00:21]}
75... Kf8 {[%clk 0:00:05.8]} 76. Nf3 {[%clk 0:00:21.1]} 76... Kg7 {[%clk
0:00:05.9]} 77. Kg4 {[%clk 0:00:20.4]} 77... Ra1 {[%clk 0:00:05.5]} 78. Kg5
{[%clk 0:00:20.2]} 78... Ra5+ {[%clk 0:00:05.6]} 79. Kg4 {[%clk 0:00:21.1]}
79... Kf6 {[%clk 0:00:05.9]} 80. Nd2 {[%clk 0:00:19.7]} 80... Ra4+ {[%clk
0:00:06.3]} 81. Kf3 {[%clk 0:00:20]} 81... Kf5 {[%clk 0:00:06.6]} 82. Nf1 {[%clk
0:00:20.7]} 82... Ra3+ {[%clk 0:00:07]} 83. Kg2 {[%clk 0:00:21.1]} 83... Ke4
{[%clk 0:00:06.6]} 84. Nh2 {[%clk 0:00:20.2]} 84... Ra2+ {[%clk 0:00:07.1]} 85.
Kh3 {[%clk 0:00:20.5]} 85... Ke3 {[%clk 0:00:07.2]} 86. Ng4+ {[%clk 0:00:20.5]}
86... Ke4 {[%clk 0:00:07.7]} 87. Nf6+ {[%clk 0:00:20.3]} 87... Kf5 {[%clk
0:00:07.6]} 88. Nd7 {[%clk 0:00:20.7]} 88... Rd2 {[%clk 0:00:07.3]} 89. Nc5
{[%clk 0:00:21.1]} 89... Rd5 {[%clk 0:00:06.9]} 90. Nb3 {[%clk 0:00:20.7]} 90...
Rd3 {[%clk 0:00:07]} 91. Nc1 {[%clk 0:00:20.4]} 91... Re3 {[%clk 0:00:07.1]} 92.
Na2 {[%clk 0:00:17.1]} 92... Ke4 {[%clk 0:00:06.4]} 93. Nb4 {[%clk 0:00:17.1]}
93... Rb3 {[%clk 0:00:06.4]} 94. Nc6 {[%clk 0:00:17.1]} 94... Rc3 {[%clk
0:00:03.5]} 95. Ne7 {[%clk 0:00:17.3]} 95... g5 {[%clk 0:00:02.3]} 96. hxg5
{[%clk 0:00:17.3]} 96... Ke5 {[%clk 0:00:02.8]} 97. Kg4 {[%clk 0:00:16.1]} 97...
Ke6 {[%clk 0:00:02.9]} 98. Ng6 {[%clk 0:00:15.7]} 98... Rc4+ {[%clk 0:00:02.8]}
99. Nf4+ {[%clk 0:00:16.6]} 99... Kf7 {[%clk 0:00:03]} 100. Kh5 {[%clk
0:00:17.5]} 100... Rc5 {[%clk 0:00:03.3]} 101. Kh6 {[%clk 0:00:17.1]} 101... Kg8
{[%clk 0:00:03.5]} 102. g6 {[%clk 0:00:18]} 102... Rc6 {[%clk 0:00:03.5]} 103.
Nh5 {[%clk 0:00:16.5]} 103... Re6 {[%clk 0:00:03.4]} 104. g4 {[%clk 0:00:16.9]}
104... Ra6 {[%clk 0:00:03.9]} 105. g5 {[%clk 0:00:16.6]} 105... Kh8 {[%clk
0:00:02.8]} 106. Nf6 {[%clk 0:00:15.7]} 106... Ra7 {[%clk 0:00:03.5]} 107. Nh5
{[%clk 0:00:14.2]} 107... Rh7+ {[%clk 0:00:04]} 108. gxh7 {[%clk 0:00:13.9]}
1/2-1/2

[Event "Early-Titled-Tuesday-Blitz-May-14-2024"]
[Site "Chess.com"]
[Date "2024.05.14"]
[Round "6"]
[White "VirtualCoach"]
[Black "David_George21"]
[Result "0-1"]
[WhiteElo "2181"]
[BlackElo "2360"]
[TimeControl "180+1"]
[EndTime "9:03:48 PDT"]
[Termination "David_George21 won by resignation"]

1. e4 {[%clk 0:02:56]} 1... c5 {[%clk 0:03:00]} 2. Nc3 {[%clk 0:02:55.3]} 2...
Nc6 {[%clk 0:02:59.3]} 3. Nf3 {[%clk 0:02:53]} 3... d6 {[%clk 0:02:57]} 4. g3
{[%clk 0:02:51.1]} 4... Nf6 {[%clk 0:02:56.4]} 5. Bg2 {[%clk 0:02:50.8]} 5... g6
{[%clk 0:02:56.4]} 6. O-O {[%clk 0:02:50]} 6... Bg7 {[%clk 0:02:57]} 7. Re1
{[%clk 0:02:38]} 7... O-O {[%clk 0:02:54.5]} 8. d3 {[%clk 0:02:34.9]} 8... Bd7
{[%clk 0:02:45.2]} 9. Nh4 {[%clk 0:02:34.4]} 9... Qc8 {[%clk 0:02:44.4]} 10. f4
{[%clk 0:02:31.5]} 10... Bh3 {[%clk 0:02:42.7]} 11. f5 {[%clk 0:02:28.3]} 11...
Bxg2 {[%clk 0:02:42.1]} 12. Kxg2 {[%clk 0:02:29.2]} 12... Nd4 {[%clk 0:02:42.4]}
13. fxg6 {[%clk 0:02:10.7]} 13... fxg6 {[%clk 0:02:41.6]} 14. Be3 {[%clk
0:02:10.3]} 14... Ng4 {[%clk 0:02:41.3]} 15. Bxd4 {[%clk 0:01:59.6]} 15... Bxd4
{[%clk 0:02:42.2]} 16. Qf3 {[%clk 0:01:45.4]} 16... Rxf3 {[%clk 0:02:41.3]} 0-1